bitfinex/quotes_SOLUSD_20240726
["timestamp","ask_amount","ask_price","bid_price","bid_amount"]
[1722001772900,22.6086,180.38,180.25,20.0]
[1722001773826,22.6086,180.38,180.26,45.0]
[1722001774528,20.0,180.37,180.25,20.0]
[1722001774719,22.6086,180.38,180.26,45.0]
[1722001775526,22.6086,180.38,180.27,26.62]
[1722001776425,22.6086,180.38,180.28,45.0]
[1722001780545,16.5393,180.38,180.28,45.0]
[1722001781454,16.5393,180.38,180.26,26.62]
[1722001781750,16.5393,180.38,180.27,20.0]
[1722001781953,16.5393,180.38,180.27,21.10909133]
[1722001782136,16.5393,180.38,180.27,20.0]
[1722001782439,6.47253627,180.37,180.27,20.0]
[1722001782647,6.47253627,180.37,180.26,20.0]
[1722001782834,6.47253627,180.37,180.27,45.0]
[1722001784523,26.47253627,180.37,180.27,45.0]
[1722001784740,6.47253627,180.36,180.26,20.0]
[1722001785832,6.47253627,180.36,180.27,45.0]
[1722001786034,6.47253627,180.35,180.27,45.0]
[1722001786238,6.47253627,180.37,180.27,45.0]
[1722001786454,6.47253627,180.36,180.27,45.0]
[1722001786659,6.47253627,180.37,180.27,45.0]
[1722001788543,6.47253627,180.37,180.26,20.0]
[1722001788941,6.47253627,180.37,180.27,45.0]
[1722001789664,6.47253627,180.37,180.26,20.0]
[1722001791436,46.47253627,180.37,180.26,20.0]
[1722001791766,26.1038,180.35,180.22,26.62]
[1722001791934,6.47253627,180.34,180.22,26.62]
[1722001792742,15.4983,180.33,180.2,5.77014433]
[1722001792951,6.47253627,180.32,180.21,45.0]
[1722001793150,6.47253627,180.32,180.2,5.77014433]
[1722001793744,6.47253627,180.32,180.21,1.10939496]
[1722001793949,6.47253627,180.32,180.21,21.10939496]
[1722001794363,6.47253627,180.32,180.21,20.0]
[1722001794882,6.47253627,180.32,180.22,45.0]
[1722001795546,6.47253627,180.32,180.23,20.0]
[1722001796274,6.47253627,180.32,180.28,13.32]
[1722001797987,6.47253627,180.32,180.23,20.0]
[1722001798173,20.0,180.31,180.26,13.32]
[1722001798374,6.47253627,180.3,180.26,13.32]
[1722001798550,6.47253627,180.3,180.27,13.32]
[1722001798758,48.8183,180.33,180.27,13.32]
[1722001799060,49.4444,180.31,180.25,13.32]
[1722001799361,6.47262668,180.3,180.25,13.32]
[1722001799750,39.79262668,180.3,180.24,13.32]
[1722001799950,6.47262668,180.29,180.24,13.32]
[1722001800255,6.47262668,180.29,180.26,13.32]
[1722001800457,49.4444,180.31,180.26,13.32]
[1722001800689,71.47266978,180.3,180.26,13.32]
[1722001800843,6.47266978,180.29,180.26,13.32]
[1722001801048,6.47266978,180.29,180.25,13.32]
[1722001801268,6.47266978,180.29,180.24,13.32]
[1722001801893,6.47266978,180.29,180.25,13.32]
[1722001802050,6.47266978,180.29,180.27,13.32]
[1722001802253,6.47266978,180.29,180.28,13.32]
[1722001802450,16.1244,180.31,180.28,13.32]
[1722001802679,16.1244,180.31,180.3,13.32]
[1722001803094,22.1796,180.35,180.27,13.32]
[1722001803392,22.1796,180.35,180.33,13.32]
[1722001803757,22.1796,180.35,180.34,13.32]
[1722001804157,20.0,180.4,180.34,13.32]
[1722001804158,23.0116,180.4,180.34,13.32]
[1722001804346,39.79249264,180.39,180.23,1.10913474]
[1722001804563,39.79249264,180.39,180.34,13.32]
[1722001804564,6.47249264,180.38,180.34,13.32]
[1722001804763,6.47249264,180.38,180.35,13.32]
[1722001805055,6.47249264,180.37,180.36,13.32]
[1722001805255,6.47249264,180.39,180.35,13.32]
[1722001805789,6.47249264,180.39,180.27,53.28]
[1722001805790,19.79249264,180.39,180.33,13.32]
[1722001806095,6.47249264,180.38,180.35,13.32]
[1722001806274,6.47249264,180.39,180.35,13.32]
[1722001806584,6.47249264,180.38,180.35,13.32]
[1722001806786,23.0116,180.4,180.29,26.61]
[1722001806787,6.47249264,180.39,180.29,26.61]
[1722001806965,6.47249264,180.37,180.29,26.61]
[1722001807287,23.0116,180.4,180.29,26.61]
[1722001807492,6.47251241,180.39,180.29,26.61]
[1722001808292,26.47251241,180.39,180.29,26.61]
[1722001808496,6.47251241,180.38,180.29,26.61]
[1722001808987,6.47251241,180.38,180.23,1.10914122]
[1722001809195,20.0,180.37,180.26,26.61]
[1722001809486,6.47251241,180.36,180.26,26.61]
[1722001809889,6.47251241,180.36,180.23,26.61]
[1722001810185,20.0,180.35,180.23,26.61]
[1722001810387,41.92651241,180.34,180.23,26.61]
[1722001810589,40.0,180.31,180.18,5.23432997]
[1722001810888,6.47264622,180.3,180.18,26.61]
[1722001811889,40.0,180.27,180.18,26.61]
[1722001812079,20.0,180.27,180.16,5.74982784]
[1722001812473,20.0,180.24,180.16,5.74982784]
[1722001812678,20.0,180.22,180.16,5.74982784]
[1722001812888,15.1242,180.21,180.16,5.74982784]
[1722001813098,35.1242,180.21,180.16,5.74982784]
[1722001813371,35.1242,180.21,180.09,26.61]
[1722001813876,40.0,180.19,180.09,26.61]
[1722001814078,20.0,180.19,180.09,26.61]
[1722001814472,40.0,180.19,180.09,26.61]
[1722001815178,20.0,180.17,180.06,32.36773885]
[1722001815773,35.1242,180.21,180.06,33.47817247]
[1722001815980,45.0,180.2,180.06,33.47817247]
[1722001816274,15.1242,180.21,180.07,45.0]
[1722001816485,15.1242,180.21,180.12,26.61]
[1722001816991,15.1242,180.21,180.15,26.61]
[1722001817290,6.2248,180.25,180.18,26.61]
[1722001817600,16.2202,180.26,180.18,26.61]
[1722001818281,16.2202,180.26,180.15,26.61]
[1722001818485,16.2202,180.26,180.16,20.0]
[1722001820092,65.0,180.25,180.16,20.0]
[1722001820380,16.2202,180.26,180.15,26.61]
[1722001821299,16.2202,180.26,180.18,26.61]
[1722001822787,6.0671,180.29,180.21,26.61]
[1722001822975,16.1539,180.31,180.24,26.61]
[1722001823176,6.4568,180.34,180.27,26.61]
[1722001823383,16.1539,180.36,180.27,26.61]
[1722001823694,16.1539,180.36,180.28,45.0]
[1722001824289,16.1539,180.36,180.27,26.61]
[1722001824478,16.1539,180.36,180.28,45.0]
[1722001824680,16.1539,180.36,180.27,26.61]
[1722001825403,16.1539,180.36,180.28,45.0]
[1722001826279,16.1539,180.36,180.27,26.61]
[1722001827200,16.1539,180.36,180.28,45.0]
[1722001827905,16.1539,180.36,180.27,26.61]
[1722001828277,16.1539,180.36,180.25,20.0]
[1722001829402,16.1539,180.36,180.27,26.61]
[1722001829706,16.1539,180.36,180.28,45.0]
[1722001830105,16.1539,180.36,180.27,26.61]
[1722001831311,6.0467,180.39,180.3,26.61]
[1722001831497,15.6379,180.41,180.31,45.0]
[1722001832389,15.6379,180.41,180.33,26.61]
[1722001833782,15.6379,180.41,180.31,51.04]
[1722001833783,20.0,180.47,180.36,26.61]
[1722001833982,56.2681,180.49,180.36,26.61]
[1722001836395,40.0,180.47,180.33,26.61]
[1722001836591,45.8131797,180.46,180.34,20.0]
[1722001836809,0.8131797,180.46,180.34,20.0]
[1722001837113,0.8131797,180.46,180.36,26.61]
[1722001839214,0.8131797,180.46,180.34,20.0]
[1722001841812,0.8131797,180.46,180.36,26.61]
[1722001845209,0.8131797,180.46,180.31,6.5605]
[1722001845395,0.8131797,180.46,180.39,26.61]
[1722001845594,0.8131797,180.46,180.45,26.61]
[1722001846209,256.6,180.6,180.45,53.22]
[1722001846400,0.02065157,180.61,180.45,53.22]
[1722001846401,0.02065157,180.61,180.55,26.61]
[1722001846604,0.02065157,180.61,180.58,26.61]
[1722001846923,0.02065157,180.61,180.59,45.0]
[1722001847103,0.02065157,180.61,180.58,26.61]
[1722001847303,0.02065157,180.61,180.56,6.65]
[1722001847504,0.02065157,180.61,180.57,71.61]
[1722001847722,0.02065157,180.61,180.58,1.1072303]
[1722001847921,0.02065157,180.61,180.6,26.61]
[1722001848302,0.02065157,180.61,180.6,46.10706895]
[1722001848511,0.8131797,180.65,180.64,29.83]
[1722001848837,0.8131797,180.65,180.64,102.35948218]
[1722001849024,14.28559,180.66,180.64,102.35948218]
[1722001849196,14.28559,180.66,180.65,72.52948218]
[1722001849740,2.62358839,180.69,180.65,72.52948218]
[1722001849937,2.62358839,180.69,180.66,1.10643573]
[1722001850104,2.62358839,180.69,180.65,73.63591791]
[1722001852010,2.62358839,180.69,180.65,28.63591791]
[1722001852336,2.62358839,180.69,180.66,30.93653532]
[1722001852547,2.62358839,180.69,180.67,27.52948218]
[1722001852752,0.8131797,180.83,180.68,1.10612909]
[1722001853025,0.8131797,180.83,180.78,29.83]
[1722001853217,0.8131797,180.83,180.73,6.6165]
[1722001853218,0.8131797,180.83,180.79,8.6352964]
[1722001853544,0.8131797,180.83,180.79,35.1700889]
[1722001853830,0.8131797,180.83,180.76,29.83]
[1722001854008,0.8131797,180.83,180.74,8.63513505]
[1722001854204,0.8131797,180.83,180.74,1.10565287]
[1722001854406,0.8131797,180.83,180.74,21.10565287]
[1722001854936,0.8131797,180.83,180.79,29.83]
[1722001855133,0.8131797,180.83,180.8,20.0]
[1722001855320,0.8131797,180.83,180.75,38.46525913]
[1722001855658,0.8131797,180.83,180.75,1.10599556]
[1722001855814,0.8131797,180.83,180.71,30.93614716]
[1722001856932,0.8131797,180.83,180.72,20.0]
[1722001857231,0.8131797,180.83,180.68,14.03853437]
[1722001857409,0.8131797,180.83,180.67,30.93650431]
[1722001858116,0.8131797,180.83,180.68,1.10650988]
[1722001858319,20.8131797,180.83,180.68,1.10650988]
[1722001858515,0.8131797,180.83,180.68,1.10650988]
[1722001858728,0.8131797,180.83,180.69,1.10641382]
[1722001860635,0.8131797,180.83,180.71,29.83]
[1722001860814,0.8131797,180.83,180.72,66.10608691]
[1722001864721,0.8131797,180.83,180.72,21.10608691]
[1722001865118,0.8131797,180.83,180.64,1.10619168]
[1722001865119,40.0,180.82,180.64,1.10619168]
[1722001865545,20.0,180.8,180.65,1.1065251]
[1722001865733,26.0522,180.77,180.59,6.3404]
[1722001865930,6.0522,180.77,180.6,31.10678982]
[1722001866246,40.0,180.75,180.6,1.10679235]
[1722001866437,40.0,180.72,180.54,29.83]
[1722001866745,15.0704,180.76,180.51,6.3404]
[1722001866746,20.0,180.7,180.51,6.3404]
[1722001866919,20.0,180.69,180.52,1.10731629]
[1722001867119,20.0,180.68,180.52,1.10731629]
[1722001867437,20.0,180.7,180.52,1.10740829]
[1722001867644,40.0,180.7,180.52,1.10740829]
[1722001867847,20.0,180.67,180.47,1.1073861]
[1722001868063,20.0,180.69,180.47,1.1073861]
[1722001868565,20.0,180.68,180.47,1.1073861]
[1722001868762,20.0,180.64,180.47,1.1073861]
[1722001868964,20.0,180.67,180.47,1.1073861]
[1722001869168,20.0,180.65,180.47,1.1073861]
[1722001869756,20.0,180.67,180.47,1.1073861]
[1722001869974,20.0,180.68,180.47,1.1073861]
[1722001870151,40.0,180.71,180.47,1.1073861]
[1722001870349,20.0,180.68,180.47,7.18185293]
[1722001870557,20.0,180.71,180.48,30.0]
[1722001870782,20.0,180.72,180.49,21.10721618]
[1722001870947,20.0,180.71,180.49,21.10721618]
[1722001871149,20.0,180.66,180.49,1.10721618]
[1722001871369,20.0,180.65,180.49,1.10721618]
[1722001871549,40.0,180.65,180.49,1.10721618]
[1722001871771,20.0,180.63,180.5,1.10761988]
[1722001872254,55.8562,180.61,180.46,1.10770658]
[1722001872453,20.0,180.59,180.42,1.10788472]
[1722001872661,20.0,180.55,180.37,1.10803178]
[1722001872977,40.0,180.55,180.37,1.10803178]
[1722001873155,20.0,180.55,180.37,1.10803178]
[1722001873345,40.0,180.55,180.37,1.10803178]
[1722001873543,20.0,180.57,180.37,1.10803178]
[1722001873778,20.0,180.58,180.37,1.10803178]
[1722001874647,20.0,180.56,180.37,1.10803178]
[1722001875041,20.0,180.6,180.37,1.10803178]
[1722001875471,5.74690008,180.6,180.37,1.10803178]
[1722001875686,15.8562,180.61,180.38,50.13630229]
[1722001875978,15.8562,180.61,180.42,29.83]
[1722001876175,55.8562,180.61,180.43,1.1076203]
[1722001876345,20.0,180.58,180.39,1.10798001]
[1722001876666,20.0,180.57,180.4,1.10810061]
[1722001877467,20.0,180.57,180.41,1.10809032]
[1722001877649,20.0,180.58,180.41,1.10809032]
[1722001877858,20.0,180.57,180.41,1.10809032]
[1722001878063,20.0,180.57,180.38,1.10811605]
[1722001878268,20.0,180.57,180.42,1.10811605]
[1722001878473,20.0,180.57,180.43,1.10810905]
[1722001878774,49.83,180.59,180.37,1.10810585]
[1722001878941,29.83,180.59,180.37,1.10810585]
[1722001879362,49.83,180.59,180.37,21.10810585]
[1722001879562,29.83,180.59,180.37,21.10810585]
[1722001879776,15.8562,180.61,180.38,7.02682042]
[1722001880069,15.8562,180.61,180.44,29.83]
[1722001880285,20.0,180.6,180.45,45.0]
[1722001880579,20.0,180.6,180.4,30.93784662]
[1722001880580,20.0,180.59,180.46,1.10796879]
[1722001880744,55.8562,180.61,180.39,21.10797953]
[1722001880950,55.8562,180.61,180.4,46.10797901]
[1722001880951,40.0,180.59,180.4,46.10797901]
[1722001881157,20.0,180.57,180.41,20.0]
[1722001881347,20.0,180.55,180.42,46.10802192]
[1722001881551,20.0,180.55,180.43,1.10805986]
[1722001881863,20.0,180.55,180.36,41.95175892]
[1722001881864,40.0,180.55,180.37,1.10821505]
[1722001882384,69.83,180.55,180.37,1.10821505]
[1722001882542,20.0,180.52,180.37,1.10821505]
[1722001882745,20.0,180.5,180.31,16.95374535]
[1722001883087,29.83,180.51,180.3,6.5524]
[1722001883088,20.0,180.45,180.3,6.5524]
[1722001883373,20.0,180.44,180.25,1.10878557]
[1722001884076,20.0,180.45,180.25,1.10878557]
[1722001884274,20.0,180.42,180.25,1.10878557]
[1722001884577,40.0,180.46,180.25,1.10878557]
[1722001884880,20.0,180.44,180.25,1.10878557]
[1722001885176,20.0,180.45,180.25,1.10878557]
[1722001885379,20.0,180.44,180.25,1.10878557]
[1722001885752,20.0,180.43,180.25,1.10878557]
[1722001886449,15.4622,180.47,180.25,1.10878557]
[1722001886649,20.0,180.46,180.25,21.10878557]
[1722001886882,20.0,180.46,180.26,45.0]
[1722001887174,15.4622,180.47,180.27,21.10872838]
[1722001887373,15.4622,180.47,180.28,45.0]
[1722001887582,15.4622,180.47,180.29,21.10848137]
[1722001887850,15.4622,180.47,180.3,46.1084817]
[1722001888083,15.4622,180.47,180.31,20.0]
[1722001888264,15.4622,180.47,180.32,46.10848222]
[1722001888459,15.4622,180.47,180.33,21.10848222]
[1722001888761,15.4622,180.47,180.34,45.0]
[1722001888959,15.4622,180.47,180.35,1.10858702]
[1722001889165,15.4622,180.47,180.34,45.0]
[1722001889682,15.4622,180.47,180.34,46.10858151]
[1722001890260,15.4622,180.47,180.35,20.0]
[1722001890459,20.0,180.5,180.36,1.1084828]
[1722001890675,42.0254,180.54,180.36,1.1084828]
[1722001890990,15.5878,180.54,180.37,6.033]
[1722001891293,15.5878,180.54,180.38,66.10819187]
[1722001891868,20.0,180.58,180.38,66.10819187]
[1722001892890,20.0,180.56,180.38,66.10819187]
[1722001893208,26.5363,180.59,180.38,66.10819187]
[1722001894080,20.0,180.57,180.38,66.10819187]
[1722001894304,40.0,180.57,180.38,66.10819187]
[1722001894490,40.0,180.57,180.38,21.10819187]
[1722001894701,20.0,180.53,180.38,21.10819187]
[1722001894868,40.0,180.51,180.37,7.14127592]
[1722001895077,40.0,180.51,180.37,6.033]
[1722001895270,5.74901903,180.56,180.38,1.10842279]
[1722001895474,16.4187,180.61,180.38,1.10842279]
[1722001895998,16.4187,180.61,180.39,36.6]
[1722001896205,16.4187,180.61,180.4,1.10777467]
[1722001896373,16.4187,180.61,180.4,21.10777467]
[1722001896574,16.4187,180.61,180.41,45.0]
[1722001896799,16.4187,180.61,180.42,21.10776882]
[1722001897010,16.4187,180.61,180.43,46.10777113]
[1722001897185,36.4187,180.61,180.44,20.0]
[1722001897678,20.0,180.59,180.44,20.0]
[1722001897874,20.0,180.57,180.39,20.0]
[1722001898177,40.0,180.59,180.4,1.1081447]
[1722001898514,45.0,180.58,180.4,1.1081447]
[1722001898681,40.0,180.57,180.4,1.1081447]
[1722001898877,20.0,180.55,180.38,1.1081471]
[1722001899211,20.0,180.55,180.35,36.6]
[1722001899212,20.0,180.55,180.37,7.14126967]
[1722001899379,45.0,180.54,180.37,7.14126967]
[1722001899800,20.0,180.58,180.37,7.14126967]
[1722001900106,20.0,180.59,180.37,7.14126967]
[1722001900312,20.0,180.56,180.37,7.14126967]
[1722001900680,45.0,180.55,180.37,7.14126967]
[1722001900879,20.0,180.56,180.38,45.0]
[1722001901107,40.0,180.58,180.39,21.10813413]
[1722001901420,45.0,180.57,180.4,46.10813289]
[1722001901623,20.0,180.56,180.41,20.0]
[1722001901847,42.16722982,180.61,180.42,46.10813466]
[1722001902114,52.495695,180.66,180.45,16.3429]
[1722001902319,40.0,180.64,180.46,66.10768035]
[1722001902478,32.495695,180.66,180.46,66.10768035]
[1722001902680,20.0,180.66,180.46,66.10768035]
[1722001903214,20.0,180.63,180.46,66.10768035]
[1722001904782,36.4466,180.67,180.46,66.10768035]
[1722001905307,20.0,180.69,180.46,66.10768035]
[1722001905483,20.0,180.72,180.47,6.5158]
[1722001905690,20.0,180.72,180.48,66.10736617]
[1722001905887,20.0,180.71,180.49,1.1073715]
[1722001906197,20.0,180.71,180.53,6.4274]
[1722001906393,55.3912,180.73,180.54,66.10726514]
[1722001906602,15.3912,180.73,180.55,16.70407143]
[1722001906794,20.0,180.77,180.56,94.85]
[1722001906995,20.0,180.77,180.58,6.4734]
[1722001907212,20.0,180.77,180.59,66.10683091]
[1722001907794,20.0,180.77,180.6,29.85]
[1722001908114,20.0,180.77,180.61,66.1068303]
[1722001908887,20.0,180.77,180.61,20.0]
[1722001909085,20.0,180.75,180.59,20.0]
[1722001909320,40.0,180.75,180.59,20.0]
[1722001909514,20.0,180.75,180.59,20.0]
[1722001910414,20.0,180.74,180.59,20.0]
[1722001910809,40.0,180.75,180.59,20.0]
[1722001911508,20.0,180.73,180.59,20.0]
[1722001912021,20.0,180.75,180.6,1.10706062]
[1722001912214,20.0,180.75,180.61,1.10703386]
[1722001912716,40.0,180.75,180.59,21.10703416]
[1722001912892,40.0,180.75,180.61,1.10703416]
[1722001913297,20.0,180.73,180.61,1.10703416]
[1722001913513,20.0,180.7,180.59,20.0]
[1722001913699,20.0,180.73,180.59,21.10718695]
[1722001913900,20.0,180.73,180.59,20.0]
[1722001913901,20.0,180.71,180.59,20.0]
[1722001914104,20.0,180.71,180.58,6.4734]
[1722001914507,20.0,180.73,180.58,6.4734]
[1722001914705,45.0,180.72,180.58,6.4734]
[1722001914920,20.0,180.71,180.58,7.58065473]
[1722001915112,20.0,180.75,180.59,1.10725473]
[1722001915434,20.0,180.77,180.6,1.10704849]
[1722001915916,20.0,180.77,180.6,21.10704849]
[1722001916117,20.0,180.77,180.61,45.0]
[1722001916316,20.0,180.77,180.62,21.10677183]
[1722001916511,20.0,180.77,180.63,45.0]
[1722001916718,20.0,180.77,180.64,1.10677337]
[1722001917105,20.8131797,180.83,180.66,22.9438]
[1722001917323,40.8131797,180.83,180.67,1.10662017]
[1722001917507,40.8131797,180.83,180.68,1.10662034]
[1722001918030,20.0,180.81,180.68,1.10662034]
[1722001918327,40.8131797,180.83,180.68,1.10662034]
[1722001918504,20.8131797,180.83,180.68,1.10662034]
[1722001918832,20.0,180.8,180.66,22.9438]
[1722001919405,40.0,180.78,180.66,22.9438]
[1722001919598,20.0,180.78,180.66,22.9438]
[1722001919907,20.0,180.8,180.66,22.9438]
[1722001920109,45.0,180.79,180.66,22.9438]
[1722001920310,40.0,180.78,180.66,22.9438]
[1722001920520,40.0,180.75,180.66,6.4189]
[1722001920705,65.0,180.79,180.66,6.4189]
[1722001921023,45.0,180.78,180.66,6.4189]
[1722001921236,45.0,180.8,180.71,36.45]
[1722001921525,20.0,180.92,180.73,6.4529]
[1722001921710,20.0,180.92,180.74,9.28580433]
[1722001921911,20.0,180.94,180.75,45.0]
[1722001922114,20.0,180.96,180.76,21.10579637]
[1722001922326,20.0,180.96,180.77,46.1058535]
[1722001922536,20.0,180.94,180.77,46.1058535]
[1722001922821,20.0,180.92,180.77,45.0]
[1722001923247,20.0,180.9,180.74,8.1798]
[1722001923402,20.0,180.95,180.75,65.0]
[1722001923606,20.0,180.97,180.76,1.10589046]
[1722001923804,20.0,180.97,180.78,6.53]
[1722001924099,20.0,180.97,180.79,66.10567977]
[1722001924313,20.0,180.99,180.8,1.10572845]
[1722001924517,20.0,180.95,180.79,66.10557075]
[1722001924708,40.0,180.93,180.79,65.0]
[1722001924902,398.3,181.0,180.79,65.0]
[1722001924903,20.0,180.95,180.79,20.0]
[1722001925414,40.0,180.9,180.78,6.53]
[1722001925613,20.0,180.88,180.78,6.53]
[1722001925817,20.0,180.87,180.78,6.53]
[1722001926011,20.0,180.85,180.78,6.53]
[1722001926219,20.0,180.87,180.78,6.53]
[1722001926732,20.0,180.89,180.78,6.53]
[1722001927125,20.0,180.85,180.78,6.53]
[1722001927521,20.0,180.83,180.78,6.53]
[1722001927720,20.0,180.83,180.74,8.1798]
[1722001927926,20.0,180.86,180.73,6.119]
[1722001927927,20.0,180.8,180.73,6.119]
[1722001928237,20.0,180.89,180.73,6.119]
[1722001928616,20.0,180.89,180.74,1.10622617]
[1722001928927,25.75154639,180.91,180.75,1.10622595]
[1722001929241,20.0,180.89,180.74,20.0]
[1722001930029,20.0,180.87,180.74,20.0]
[1722001930231,20.0,180.87,180.73,6.119]
[1722001930841,20.0,180.89,180.74,1.10630138]
[1722001931042,20.0,180.86,180.73,6.119]
[1722001931428,69.8,180.91,180.74,1.10630519]
[1722001931844,29.8,180.91,180.74,21.10630519]
[1722001932022,49.8,180.91,180.74,21.10630519]
[1722001932221,20.0,180.89,180.74,21.10597016]
[1722001932642,20.0,180.89,180.74,20.0]
[1722001933043,49.8,180.91,180.75,1.10617102]
[1722001933243,49.8,180.91,180.74,21.10617102]
[1722001933446,29.8,180.91,180.74,21.10617102]
[1722001933744,49.8,180.95,180.76,6.0838]
[1722001933945,20.0,180.92,180.77,65.0]
[1722001934121,20.0,180.9,180.77,20.0]
[1722001934321,20.0,180.92,180.76,6.0838]
[1722001934538,20.0,180.9,180.77,20.0]
[1722001934843,20.0,180.92,180.77,20.0]
[1722001935018,25.75388614,180.94,180.77,21.10595471]
[1722001935223,20.0,180.94,180.78,45.0]
[1722001935666,20.0,180.91,180.77,20.0]
[1722001935844,20.0,180.91,180.76,6.0838]
[1722001936020,20.0,180.85,180.76,6.0838]
[1722001936338,20.0,180.88,180.76,6.0838]
[1722001936727,40.0,180.88,180.76,6.0838]
[1722001936927,20.0,180.86,180.76,6.0838]
[1722001938041,20.0,180.82,180.76,6.0838]
[1722001938343,40.0,180.82,180.76,6.0838]
[1722001938533,20.0,180.82,180.76,6.0838]
[1722001938733,49.8,180.85,180.76,6.0838]
[1722001938950,20.0,180.87,180.76,6.0838]
[1722001939150,20.0,180.85,180.76,6.0838]
[1722001939444,20.0,180.85,180.69,15.53]
[1722001939445,20.0,180.8,180.7,6.4504]
[1722001941245,20.0,180.84,180.7,6.4504]
[1722001941843,20.0,180.82,180.7,6.4504]
[1722001942344,20.0,180.8,180.7,6.4504]
[1722001942530,49.8,180.82,180.7,6.4504]
[1722001942922,20.0,180.8,180.7,6.4504]
[1722001943332,49.8,180.82,180.7,6.4504]
[1722001943532,45.0,180.81,180.7,6.4504]
[1722001943733,20.0,180.8,180.7,6.4504]
[1722001944045,49.8,180.82,180.7,6.4504]
[1722001944947,20.0,180.81,180.7,6.4504]
[1722001945141,20.0,180.78,180.7,6.4504]
[1722001946052,20.0,180.76,180.7,6.4504]
[1722001946251,20.0,180.75,180.65,6.6301]
[1722001946730,20.0,180.76,180.65,6.6301]
[1722001946926,20.0,180.73,180.65,6.6301]
[1722001947147,20.0,180.71,180.65,6.6301]
[1722001947341,20.0,180.72,180.65,6.6301]
[1722001947543,20.0,180.7,180.65,6.6301]
[1722001947727,20.0,180.7,180.59,6.4513]
[1722001947932,20.0,180.69,180.59,6.4513]
[1722001948133,20.0,180.7,180.59,6.4513]
[1722001949052,20.0,180.68,180.59,6.4513]
[1722001949549,20.0,180.65,180.59,6.4513]
[1722001950151,20.0,180.66,180.59,6.4513]
[1722001950754,20.0,180.71,180.59,6.4513]
[1722001950948,20.0,180.72,180.59,6.4513]
[1722001951438,20.0,180.74,180.59,6.4513]
[1722001951634,20.0,180.75,180.59,6.4513]
[1722001951837,20.0,180.75,180.6,20.0]
[1722001952042,20.0,180.77,180.61,1.1070459]
[1722001952230,5.7630722,180.82,180.62,21.8646]
[1722001952438,20.0,180.81,180.64,6.383]
[1722001952644,20.0,180.81,180.65,21.10658068]
[1722001952844,20.0,180.81,180.66,45.0]
[1722001953154,20.0,180.81,180.67,21.10658074]
[1722001953364,20.0,180.81,180.68,1.1065822]
[1722001953540,20.0,180.82,180.67,20.0]
[1722001953741,40.0,180.8,180.67,20.0]
[1722001954057,20.0,180.8,180.67,20.0]
[1722001954237,20.0,180.78,180.65,20.0]
[1722001954651,20.0,180.8,180.65,20.0]
[1722001954848,20.0,180.82,180.65,21.10677477]
[1722001955064,20.0,180.82,180.66,45.0]
[1722001955238,20.0,180.82,180.67,20.0]
[1722001955553,20.0,180.79,180.67,20.0]
[1722001955854,20.0,180.83,180.65,21.10672132]
[1722001956046,20.0,180.83,180.66,45.0]
[1722001956245,20.0,180.85,180.68,21.8379]
[1722001956446,20.0,180.85,180.69,46.10633279]
[1722001956646,20.0,180.83,180.7,20.0]